fUSD/lending_fUSD_20251115
["ID","MTS","AMOUNT","RATE_DAILY","PERIOD"]
[393991559,1763165440735,-188.83,0.00017878,2]
[393991560,1763165440745,-217.411,0.00017878,2]
[393991561,1763165440755,-153.364,0.00017878,2]
[393991562,1763165440764,-150.0,0.00017878,2]
[393991563,1763165440775,-259.67,0.00017878,2]
[393991564,1763165440785,-189.162,0.00017878,2]
[393991565,1763165440794,-162.333,0.00017878,2]
[393991566,1763165440804,-210.169,0.00017878,2]
[393991567,1763165440814,-266.384,0.00017878,2]
[393991568,1763165440823,-221.478,0.00017878,2]
[393991569,1763165440833,-625.487,0.00017878,2]
[393991570,1763165440843,-575.0,0.00017878,2]
[393991571,1763165440852,-1318.0,0.00017878,2]
[393991572,1763165440862,-3429.0,0.00017878,2]
[393991573,1763165440872,-1616.99,0.00017878,2]
[393991574,1763165440881,-2500.0,0.00017882,3]
[393991575,1763165440891,-974.28410425,0.00017889,2]
[393991576,1763165440903,-2500.0,0.00017891,3]
[393991577,1763165440912,-1000.0,0.000179,2]
[393991578,1763165440922,-26583.8658,0.000179,2]
[393991579,1763165440932,-2712.44774985,0.000179,2]
[393991580,1763165440942,-2500.0,0.000179,3]
[393991581,1763165440952,-1021.58498628,0.000179,2]
[393991582,1763165440962,-1219.0,0.000179,6]
[393991583,1763165440972,-1000.0,0.000179,2]
[393991584,1763165440982,-2500.0,0.000179,3]
[393991585,1763165440996,-974.28410425,0.000179,2]
[393991586,1763165441006,-1108.64149247,0.000179,2]
[393991587,1763165441019,-151.43976194,0.000179,3]
[393991588,1763165441029,-12783.30915737,0.000179,2]
[393991589,1763165441039,-3671.47646875,0.000179,2]
[393991590,1763165441049,-500.0,0.00017973,2]
[393991591,1763165441059,-424.32394158,0.00017973,2]
[393991592,1763165441069,-481.92632213,0.00017973,2]
[393991593,1763165441079,-305.39941021,0.00017973,2]
[393991594,1763165441091,-500.0,0.00017973,2]
[393991595,1763165441101,-500.0,0.00017973,2]
[393991596,1763165441111,-500.0,0.00017973,2]
[393991597,1763165441121,-500.0,0.00017973,2]
[393991598,1763165441131,-500.0,0.00017973,2]
[393991599,1763165441141,-500.0,0.00017973,2]
[393991600,1763165441154,-500.0,0.00017973,2]
[393991601,1763165441164,-500.0,0.00017973,2]
[393991602,1763165441174,-506.83414067,0.00017973,2]
[393991603,1763165441184,-205.45206529,0.00017973,2]
[393991604,1763165441194,-500.0,0.00017973,2]
[393991605,1763165441204,-178.76322882,0.00017973,2]
[393991606,1763165441213,-500.0,0.00017973,2]
[393991607,1763165441223,-500.0,0.00017973,2]
[393991608,1763165441234,-500.0,0.00017973,2]
[393991609,1763165441244,-161.40495423,0.00017973,2]
[393991610,1763165441255,-500.0,0.00017973,2]
[393991611,1763165441265,-500.0,0.00017973,2]
[393991612,1763165441276,-500.0,0.00017973,2]
[393991613,1763165441288,-500.0,0.00017973,2]
[393991614,1763165441299,-500.0,0.00017973,2]
[393991615,1763165441310,-306.64280162,0.00017973,2]
[393991616,1763165441320,-500.0,0.00017973,2]
[393991617,1763165441331,-500.0,0.00017973,2]
[393991618,1763165441342,-500.0,0.00017973,2]
[393991619,1763165441353,-500.0,0.00017973,2]
[393991620,1763165441365,-500.0,0.00017973,2]
[393991621,1763165441375,-500.0,0.00017973,2]
[393991622,1763165441386,-644.81873748,0.00017973,2]
[393991623,1763165441397,-500.0,0.00017973,2]
[393991624,1763165441411,-500.0,0.00017973,2]
[393991625,1763165441421,-500.0,0.00017973,2]
[393991626,1763165441431,-500.0,0.00017973,2]
[393991627,1763165441442,-500.0,0.00017973,2]
[393991628,1763165441453,-150.0,0.00017973,2]
[393991629,1763165441464,-150.0,0.00017973,2]
[393991630,1763165441474,-500.0,0.00017973,2]
[393991631,1763165441484,-150.0,0.00017973,2]
[393991632,1763165441494,-500.0,0.00017973,2]
[393991633,1763165441504,-150.0,0.00017973,2]
[393991634,1763165441514,-500.0,0.00017973,2]
[393991635,1763165441524,-500.0,0.00017973,2]
[393991636,1763165441534,-209.55981251,0.00017973,2]
[393991637,1763165441544,-436.81359697,0.00017973,2]
[393991638,1763165441556,-300.0,0.00017977,2]
[393991639,1763165441570,-507.74347007,0.00017982,2]
[393991640,1763165441580,-2835.08789533,0.00017983,2]
[393991641,1763165441590,-150.37047468,0.0001799,2]
[393991642,1763165441601,-150.37047468,0.0001799,2]
[393991643,1763165441611,-150.37047468,0.0001799,2]
[393991644,1763165441621,-150.0,0.00017993,2]
[393991645,1763165441631,-500.0,0.00017993,2]
[393991646,1763165441641,-507.47055637,0.00017993,2]
[393991647,1763165441656,-150.0,0.00017993,2]
[393991648,1763165441665,-500.0,0.00017993,2]
[393991649,1763165441675,-500.0,0.00017993,2]
[393991650,1763165441684,-500.0,0.00017993,2]
[393991651,1763165441694,-150.0,0.00017993,2]
[393991652,1763165441704,-150.0,0.00017993,2]
[393991653,1763165441714,-150.0,0.00017993,2]
[393991654,1763165441724,-150.0,0.00017993,2]
[393991655,1763165441734,-150.0,0.00017993,2]
[393991656,1763165441743,-500.0,0.00017993,2]
[393991657,1763165441753,-500.0,0.00017993,2]
[393991658,1763165441763,-3757.0,0.00017999,2]
[393991659,1763165441773,-116212.8621143,0.00017999,2]
[393991660,1763165441782,-20161.9506074,0.00017999,2]
[393991661,1763165441792,-372640.4525054,0.00017999,2]
[393991662,1763165441802,-1039.7324054,0.00017999,2]
[393991663,1763165441812,-829429.20947706,0.00018,2]
[393991664,1763165441822,-2688886.89327687,0.00018,2]
[393991665,1763165441843,-573.75000428,0.00018,2]
[393991666,1763165441855,-1916.64139901,0.00018,2]
[393991667,1763165441867,-7061.02615666,0.00018,2]
[393991668,1763165441910,-107686.14894448,0.00018,2]
[393991669,1763165442074,151.0,0.00041557,120]
[393991670,1763165442220,151.0,0.00041557,120]
[393991671,1763165442371,151.0,0.00041557,120]
[393991676,1763165442510,151.0,0.00041557,120]
[393991678,1763165442852,151.0,0.00041557,120]
[393991679,1763165443807,151.0,0.00041557,120]
[393991681,1763165445931,-150.0,0.00017178,2]
[393991682,1763165445944,-238.29817253,0.00017729,2]
[393991683,1763165445953,-53.66649798,0.00017993,2]
[393991684,1763165446181,-96.33350202,0.00017993,2]
[393991685,1763165446192,-2718.92060344,0.00018,2]
[393991686,1763165446203,-2171.49525169,0.00018,2]
[393991687,1763165446215,-4522.75064285,0.00018,2]
[393991688,1763165446227,-1419.72815813,0.00018,2]
[393991870,1763165462643,200.0,0.00041557,30]
[393991871,1763165472885,151.0,0.00041557,120]
[393991872,1763165473499,151.0,0.00041557,120]
[393991873,1763165504049,1200.00987496,0.00041557,30]
[393991874,1763165527671,472.66247824,0.00041557,120]
[393991875,1763165530676,200.0,0.00041557,120]
[393991876,1763165531301,200.0,0.00041557,120]
[393991877,1763165531906,200.0,0.00041557,120]
[393991878,1763165532512,200.0,0.00041557,120]
[393991879,1763165533139,200.0,0.00041557,120]
[393991880,1763165533759,200.0,0.00041557,120]
[393991881,1763165534176,250.0,0.00041557,120]
[393991882,1763165534384,200.0,0.00041557,120]
[393991883,1763165535314,200.0,0.00041557,120]
[393991884,1763165535409,250.0,0.00041557,120]
[393991885,1763165535659,200.0,0.00041557,120]
[393991886,1763165535904,250.0,0.00041557,120]
[393991887,1763165536310,200.0,0.00041557,120]
[393991888,1763165536553,250.0,0.00041557,120]
[393991889,1763165536968,200.0,0.00041557,120]
[393991890,1763165537209,250.0,0.00041557,120]
[393991891,1763165537541,200.0,0.00041557,120]
[393991892,1763165537815,250.0,0.00041557,120]
[393991893,1763165537897,151.0,0.00041557,120]
[393991894,1763165538130,200.0,0.00041557,120]
[393991895,1763165538502,151.0,0.00041557,120]
[393991896,1763165538585,250.0,0.00041557,120]
[393991897,1763165538786,200.0,0.00041557,120]
[393991898,1763165539106,151.0,0.00041557,120]
[393991899,1763165539235,250.0,0.00041557,120]
[393991900,1763165539385,200.0,0.00041557,120]
[393991901,1763165539755,151.0,0.00041557,120]
[393991902,1763165539858,250.0,0.00041557,120]
[393991903,1763165540012,200.0,0.00041557,120]
[393991904,1763165540131,332.31443706,0.00041557,120]
[393991905,1763165540371,151.0,0.00041557,120]
[393991906,1763165540490,250.0,0.00041557,120]
[393991907,1763165540653,200.0,0.00041557,120]
[393991908,1763165540977,151.0,0.00041557,120]
[393991909,1763165541103,250.0,0.00041557,120]
[393991910,1763165541578,151.0,0.00041557,120]
[393991911,1763165541654,200.0,0.00041557,120]
[393991912,1763165541732,250.0,0.00041557,120]
[393991913,1763165542005,200.0,0.00041557,30]
[393991914,1763165542193,151.0,0.00041557,120]
[393991915,1763165542274,200.0,0.00041557,120]
[393991916,1763165542356,250.0,0.00041557,120]
[393991917,1763165542425,300.0,0.00041557,30]
[393991918,1763165542820,151.0,0.00041557,120]
[393991919,1763165542892,200.0,0.00041557,120]
[393991920,1763165542964,250.0,0.00041557,120]
[393991921,1763165543443,151.0,0.00041557,120]
[393991922,1763165543524,250.0,0.00041557,120]
[393991923,1763165544031,151.0,0.00041557,120]
[393991924,1763165544170,250.0,0.00041557,120]
[393991925,1763165544818,151.0,0.00041557,120]
[393991926,1763165544901,250.0,0.00041557,120]
[393991927,1763165545252,151.0,0.00041557,120]
[393991928,1763165545372,250.0,0.00041557,120]
[393991929,1763165545551,620.0,0.00041557,120]
[393991930,1763165545637,151.0,0.00041557,120]
[393991931,1763165545830,151.0,0.00041557,120]
[393991932,1763165545968,250.0,0.00041557,120]
[393991933,1763165546229,156.587,0.00041557,120]
[393991934,1763165546462,151.0,0.00041557,120]
[393991935,1763165546588,250.0,0.00041557,120]
[393991936,1763165546838,162.380719,0.00041557,120]
[393991937,1763165547204,151.0,0.00041557,120]
[393991938,1763165547425,168.3888056,0.00041557,120]
[393991939,1763165547668,151.0,0.00041557,120]
[393991940,1763165548271,174.61919141,0.00041557,120]
[393991941,1763165548399,151.0,0.00041557,120]
[393991942,1763165548689,181.08010149,0.00041557,120]
[393991943,1763165549151,151.0,0.00041557,120]
[393991944,1763165549765,151.0,0.00041557,120]
[393991945,1763165549881,187.78006525,0.00041557,120]
[393991946,1763165550520,194.72792766,0.00041557,120]
[393991947,1763165551116,201.93286099,0.00041557,120]
[393991948,1763165551710,209.40437684,0.00041557,120]
[393991949,1763165552316,217.15233878,0.00041557,120]
[393991950,1763165552904,200.0,0.00041557,120]
[393991951,1763165552986,225.18697532,0.00041557,120]
[393991952,1763165553498,200.0,0.00041557,120]
[393991953,1763165553620,233.51889341,0.00041557,120]
[393991954,1763165554101,200.0,0.00041557,120]
[393991955,1763165554212,242.15909246,0.00041557,120]
[393991956,1763165554698,200.0,0.00041557,120]
[393991957,1763165554894,251.11897888,0.00041557,120]
[393991958,1763165555364,200.0,0.00041557,120]
[393991959,1763165555545,260.4103811,0.00041557,120]
[393991960,1763165555974,200.0,0.00041557,120]
[393991961,1763165556760,200.0,0.00041557,120]
[393991962,1763165557482,200.0,0.00041557,120]
[393991963,1763165557844,200.0,0.00041557,120]
[393991964,1763165558456,200.0,0.00041557,120]
[393991965,1763165559083,200.0,0.00041557,120]
[393991966,1763165559698,200.0,0.00041557,120]
[393991967,1763165560472,200.0,0.00041557,120]
[393991968,1763165561121,200.0,0.00041557,120]
[393991969,1763165561789,200.0,0.00041557,120]
[393991970,1763165562399,200.0,0.00041557,120]
[393991971,1763165563041,200.0,0.00041557,120]
[393991972,1763165563126,150.0,0.00041557,30]
[393991973,1763165595303,151.0,0.00041557,120]
[393991974,1763165595927,151.0,0.00041557,120]
[393991975,1763165596541,151.0,0.00041557,120]
[393991976,1763165597155,151.0,0.00041557,120]
[393991977,1763165597698,161.1479873,0.00041557,30]
[393991978,1763165597850,151.0,0.00041557,120]
[393991979,1763165598412,151.0,0.00041557,120]
[393991980,1763165599227,151.0,0.00041557,120]
[393991981,1763165599629,151.0,0.00041557,120]
[393991982,1763165600279,151.0,0.00041557,120]
[393991983,1763165600908,151.0,0.00041557,120]
[393991984,1763165601520,151.0,0.00041557,120]
[393991985,1763165602161,151.0,0.00041557,120]
[393991986,1763165602754,151.0,0.00041557,120]
[393991987,1763165604008,151.0,0.00041557,120]
[393991988,1763165604679,151.0,0.00041557,120]
[393991989,1763165605288,151.0,0.00041557,120]
[393991990,1763165605931,151.0,0.00041557,120]
[393991991,1763165606530,151.0,0.00041557,120]
[393991992,1763165607155,151.0,0.00041557,120]
[393991993,1763165607767,151.0,0.00041557,120]
[393991996,1763165652233,250.0,0.00041557,120]
[393991997,1763165652837,250.0,0.00041557,120]
[393991998,1763165652912,450.00729013,0.00041557,30]
[393991999,1763165653465,250.0,0.00041557,120]
[393992000,1763165654080,250.0,0.00041557,120]
[393992001,1763165654698,250.0,0.00041557,120]
[393992002,1763165655313,250.0,0.00041557,120]
[393992003,1763165663564,151.0,0.00041557,120]
[393992004,1763165664151,151.0,0.00041557,120]
[393992005,1763165665063,151.0,0.00041557,120]
[393992006,1763165665509,151.0,0.00041557,120]
[393992007,1763165666109,151.0,0.00041557,120]
[393992008,1763165666725,151.0,0.00041557,120]
[393992009,1763165667367,151.0,0.00041557,120]
[393992010,1763165667995,151.0,0.00041557,120]
[393992011,1763165668633,151.0,0.00041557,120]
[393992012,1763165669266,151.0,0.00041557,120]
[393992013,1763165669885,151.0,0.00041557,120]
[393992014,1763165670507,151.0,0.00041557,120]
[393992015,1763165671104,151.0,0.00041557,120]
[393992016,1763165672041,151.0,0.00041557,120]
[393992017,1763165672378,151.0,0.00041557,120]
[393992018,1763165672978,151.0,0.00041557,120]
[393992019,1763165673614,151.0,0.00041557,120]
[393992020,1763165674233,151.0,0.00041557,120]
[393992021,1763165674850,151.0,0.00041557,120]
[393992022,1763165675470,151.0,0.00041557,120]
[393992024,1763165720436,151.0,0.00041557,120]
[393992025,1763165721058,151.0,0.00041557,120]
[393992026,1763165721689,151.0,0.00041557,120]
[393992027,1763165722306,151.0,0.00041557,120]
[393992028,1763165722949,151.0,0.00041557,120]
[393992029,1763165723958,151.0,0.00041557,120]
[393992030,1763165724222,151.0,0.00041557,120]
[393992031,1763165724869,151.0,0.00041557,120]
[393992032,1763165725502,151.0,0.00041557,120]
[393992033,1763165726136,151.0,0.00041557,120]
[393992034,1763165726742,151.0,0.00041557,120]
[393992035,1763165727367,151.0,0.00041557,120]
[393992036,1763165727977,151.0,0.00041557,120]
[393992037,1763165728608,151.0,0.00041557,120]
[393992038,1763165729324,151.0,0.00041557,120]
[393992039,1763165729963,151.0,0.00041557,120]
[393992040,1763165730598,151.0,0.00041557,120]
[393992041,1763165731484,151.0,0.00041557,120]
[393992042,1763165731885,151.0,0.00041557,120]
[393992043,1763165732531,151.0,0.00041557,120]
[393992044,1763165761309,200.0,0.00041557,30]
[393992045,1763165767850,496.16648256,0.00041557,120]
[393992046,1763165769432,151.0,0.00041557,120]
[393992047,1763165770075,151.0,0.00041557,120]
[393992048,1763165770807,151.0,0.00041557,120]
[393992049,1763165771446,151.0,0.00041557,120]
[393992050,1763165772127,151.0,0.00041557,120]
[393992051,1763165772767,151.0,0.00041557,120]
[393992052,1763165773449,151.0,0.00041557,120]
[393992053,1763165774225,151.0,0.00041557,120]
[393992054,1763165774941,151.0,0.00041557,120]
[393992055,1763165775705,151.0,0.00041557,120]
[393992056,1763165776312,151.0,0.00041557,120]
[393992057,1763165776945,151.0,0.00041557,120]
[393992058,1763165777635,151.0,0.00041557,120]
[393992059,1763165778289,151.0,0.00041557,120]
[393992060,1763165778937,151.0,0.00041557,120]
[393992061,1763165779637,151.0,0.00041557,120]
[393992062,1763165780238,151.0,0.00041557,120]
[393992063,1763165780882,151.0,0.00041557,120]
[393992064,1763165781548,151.0,0.00041557,120]
[393992065,1763165782191,151.0,0.00041557,120]
[393992066,1763165824540,496.16648256,0.00041557,120]
[393992067,1763165824645,151.0,0.00041557,30]
[393992068,1763165827616,190.76521837,0.00041557,120]
[393992069,1763165827949,151.0,0.00041557,120]
[393992070,1763165828645,151.0,0.00041557,120]
[393992071,1763165829266,151.0,0.00041557,120]
[393992072,1763165830018,151.0,0.00041557,120]
[393992073,1763165830621,151.0,0.00041557,120]
[393992074,1763165831243,151.0,0.00041557,120]
[393992075,1763165831920,151.0,0.00041557,120]
[393992076,1763165832548,151.0,0.00041557,120]
[393992077,1763165833163,151.0,0.00041557,120]
[393992078,1763165833326,288.24930611,0.00041557,120]
[393992079,1763165833814,151.0,0.00041557,120]
[393992080,1763165833893,245.6993183,0.00041557,120]
[393992081,1763165834481,151.0,0.00041557,120]
[393992082,1763165835139,151.0,0.00041557,120]
[393992083,1763165835832,151.0,0.00041557,120]
[393992084,1763165836472,151.0,0.00041557,120]
[393992085,1763165837079,151.0,0.00041557,120]
[393992086,1763165837911,151.0,0.00041557,120]
[393992087,1763165838307,151.0,0.00041557,120]
[393992088,1763165844599,200.0,0.00041557,30]
[393992089,1763165845356,300.0,0.00041557,30]
[393992090,1763165883464,496.16648256,0.00041557,120]
[393992091,1763165942755,156.0,0.000301,120]
[393992092,1763165946288,421.0,0.00041557,120]
[393992093,1763165985306,150.0,0.00041557,120]
[393992094,1763165998043,150.0,0.00041557,120]
[393992095,1763166009003,150.0,0.00041557,120]
[393992096,1763166020578,150.0,0.00041556,120]
[393992097,1763166061398,200.0,0.00041556,30]
[393992098,1763166092702,500.0,0.00027397,120]
[393992099,1763166092861,500.0,0.00027534,120]
[393992100,1763166093034,500.0,0.00027671,120]
[393992101,1763166093265,500.0,0.00027808,120]
[393992102,1763166093447,485.35864076,0.00027945,120]
[393992103,1763166132906,1009.61,0.00041556,30]
[393992104,1763166142944,200.0,0.00041556,30]
[393992105,1763166143436,300.0,0.00041556,30]
[393992106,1763166154422,300.0,0.00027397,120]
[393992107,1763166154734,300.0,0.00030137,120]
[393992108,1763166163268,210.0,0.0002629,120]
[393992109,1763166163687,210.0,0.0002628,120]
[393992110,1763166164126,210.0,0.0002627,120]
[393992111,1763166164579,210.0,0.0002629,120]
[393992112,1763166165024,210.0,0.0002628,120]
[393992113,1763166165460,210.0,0.0002627,120]
[393992114,1763166165896,210.0,0.0002629,120]
[393992115,1763166166331,210.0,0.0002628,120]
[393992116,1763166166764,210.0,0.0002629,120]
[393992117,1763166167219,219.66,0.0002628,120]
[393992119,1763166258976,150.01,0.00041556,30]
[393992120,1763166305487,2357.3564429,0.00016459,4]
[393992121,1763166309598,159.999995,0.00041556,120]
[393992122,1763166311619,401.33453836,0.00041556,30]
[393992123,1763166315768,323.76676655,0.00041556,120]
[393992124,1763166319597,373.38921154,0.00041556,120]
[393992125,1763166320410,377.80105054,0.00041556,120]
[393992126,1763166323205,459.55558172,0.00041556,120]
[393992127,1763166323309,212.15043565,0.00041556,120]
[393992128,1763166325023,234.66037966,0.00041556,120]
[393992129,1763166331535,240.14491552,0.00041556,120]
[393992130,1763166331908,169.90776689,0.0002,120]
[393992131,1763166333995,238.04650439,0.0003013,120]
[393992132,1763166337455,405.17308631,0.00041556,120]
[393992133,1763166340283,159.50544296,0.00041556,30]
[393992134,1763166340844,431.40335696,0.00041556,30]
[393992135,1763166341202,307.80996361,0.00041556,120]
[393992136,1763166343542,174.01031015,0.00041556,120]
[393992137,1763166345750,162.09621617,0.00041556,120]
[393992138,1763166349984,205.48995336,0.00041556,30]
[393992144,1763166353600,10000.01,0.000156,2]
[393992145,1763166353629,7140.28690017,0.000156,2]
[393992146,1763166357503,291.05651118,0.00041556,120]
[393992147,1763166361323,200.0,0.00041556,30]
[393992148,1763166363055,917.32835279,0.00041556,120]
[393992149,1763166363645,260.1913009,0.00041556,120]
[393992150,1763166367224,333.75507841,0.00041556,120]
[393992151,1763166370163,394.54372875,0.00041556,30]
[393992152,1763166370246,219.44118638,0.00041556,30]
[393992153,1763166371356,517.17171274,0.00041556,120]
[393992154,1763166377067,354.43775347,0.00041556,120]
[393992155,1763166378179,667.19006263,0.00041556,120]
[393992156,1763166385653,370.20171605,0.00041556,30]
[393992157,1763166400129,227.81777111,0.00041556,30]
[393992158,1763166413856,5000.00071264,0.000162,5]
[393992159,1763166419930,329.75354024,0.00041556,30]
[393992160,1763166424700,220.47138047,0.00041556,120]
[393992161,1763166425726,691.13654245,0.0002301,120]
[393992162,1763166442293,200.0,0.00041556,30]
[393992163,1763166442864,300.0,0.00041556,30]
[393992164,1763166446428,456.04749843,0.00041556,120]
[393992165,1763166446768,213.2560507,0.00041556,120]
[393992166,1763166452657,449.93856471,0.00041556,120]
[393992167,1763166460946,412.80226276,0.00041556,30]
[393992168,1763166461845,438.44418593,0.00028,120]
[393992169,1763166462522,435.21811273,0.00041556,120]
[393992170,1763166465241,198.71677004,0.00041556,31]
[393992171,1763166479578,500.43173439,0.00041556,120]
[393992172,1763166483512,263.09667996,0.00041556,120]
[393992173,1763166490103,151.0,0.000156,2]
[393992174,1763166491880,388.21470177,0.00041556,120]
[393992176,1763166499030,215.01125154,0.00041556,30]
[393992177,1763166500605,797.91788703,0.00041556,80]
[393992178,1763166501416,340.00613149,0.00041556,30]
[393992179,1763166501632,153.17361698,0.00041556,30]
[393992180,1763166501807,248.61426346,0.00041556,120]
[393992181,1763166502258,540.96232444,0.00041556,120]
[393992182,1763166502423,281.61633436,0.00041556,30]
[393992183,1763166502537,226.85078819,0.00041556,30]
[393992184,1763166502716,300.10884034,0.00041556,120]
[393992185,1763166502820,467.59369045,0.00041556,30]
[393992186,1763166502901,235.80450302,0.00041556,90]
[393992187,1763166503306,214.90842834,0.00041556,31]
[393992188,1763166503876,406.89967917,0.00041556,120]
[393992189,1763166505997,555.89451306,0.00041556,120]
[393992190,1763166506237,525.14757263,0.000246,120]
[393992191,1763166506526,452.62744903,0.00041556,30]
[393992192,1763166508164,293.43471206,0.00041556,120]
[393992193,1763166509189,296.04836025,0.00041556,120]
[393992194,1763166509641,762.45699913,0.00041556,120]
[393992195,1763166510736,276.60253908,0.00041556,30]
[393992196,1763166512690,556.63917551,0.00014999,2]
[393992197,1763166513275,311.33122918,0.00041556,30]
[393992198,1763166513580,359.8665288,0.00041556,120]
[393992199,1763166514027,156.51272745,0.0003,120]
[393992200,1763166514522,193.47780412,0.00041556,30]
[393992201,1763166516618,195.37808547,0.00041556,120]
[393992202,1763166517156,497.91501382,0.00041556,60]
[393992203,1763166517241,210.07512009,0.00041556,120]
[393992204,1763166517634,310.11239112,0.0002465,120]
[393992205,1763166517724,861.87047014,0.00041556,120]
[393992206,1763166517817,586.06788084,0.00041556,30]
[393992207,1763166517999,6175.8073586,0.0001,2]
[393992208,1763166518878,369.74374772,0.00041556,120]
[393992209,1763166518960,215.94859991,0.00025,120]
[393992210,1763166519056,259.06595268,0.00041556,120]
[393992211,1763166519621,453.85650643,0.0003,120]
[393992212,1763166519802,412.56533462,0.00041556,120]
[393992214,1763166520675,168.65307819,0.00041556,120]
[393992215,1763166520754,185.32472738,0.00041556,120]
[393992216,1763166521479,270.65559894,0.00027,120]
[393992217,1763166521612,155.72685292,0.0003,120]
[393992218,1763166521845,161.15370063,0.00041556,120]
[393992219,1763166522040,320.9991054,0.00041556,120]
[393992220,1763166590896,671.80365984,0.00027397,120]
[393992226,1763166632018,-252.89271583,0.0001607,2]
[393992227,1763166632028,-195.0,0.0001617,2]
[393992228,1763166632038,-184.86815245,0.00016211,2]
[393992229,1763166632047,-3717.94,0.00016252,2]
[393992230,1763166632056,-193.68169865,0.00016264,2]
[393992231,1763166632065,-300.0,0.00016314,2]
[393992232,1763166632074,-195.0,0.00016314,2]
[393992233,1763166632083,-195.0,0.00016373,2]
[393992234,1763166632092,-1200.0,0.00016412,2]
[393992235,1763166632101,-300.0,0.00016413,2]
[393992236,1763166632110,-300.0,0.00016419,2]
[393992237,1763166632119,-1957.94,0.0001642,2]
[393992238,1763166632128,-321.0,0.00016497,2]
[393992239,1763166632137,-6777.7,0.00016535,2]
[393992240,1763166632146,-200.0,0.00016762,2]
[393992241,1763166632155,-246.11855676,0.00016799,2]
[393992242,1763166632164,-15827.79,0.00016816,2]
[393992243,1763166632175,-999.0,0.0001684,3]
[393992244,1763166632183,-208.47,0.00016876,2]
[393992245,1763166632192,-416.5,0.00016878,2]
[393992246,1763166632201,-43.37898568,0.00016879,2]
[393992247,1763166632213,-1809.04101432,0.00016879,2]
[393992248,1763166632223,-604.64578079,0.00016885,2]
[393992249,1763166632232,-385.07053022,0.00016885,2]
[393992250,1763166632242,-500.0,0.00016885,2]
[393992251,1763166632252,-241.96370253,0.00016885,2]
[393992252,1763166632261,-162.70827237,0.00016885,2]
[393992253,1763166632270,-81581.83347339,0.00016886,2]
[393992254,1763166632282,-1146.88520311,0.00016886,2]
[393992255,1763166632298,-1815.05849312,0.00016886,2]
[393992256,1763166632309,-3028.47250073,0.00016886,2]
[393992257,1763166632324,-5026.14440837,0.00016886,2]
[393992258,1763166632336,-176843.13282128,0.00016886,2]
[393992260,1763166632345,-3088.73593293,0.00016899,2]
[393992262,1763166632356,-150.0,0.00016907,2]
[393992263,1763166632365,-246.11855669,0.00016956,2]